fUSD/lending_fUSD_20251117
["ID","MTS","AMOUNT","RATE_DAILY","PERIOD"]
[394223113,1763392246423,-166.02541,0.0003819,2]
[394223114,1763392246433,-300.0,0.0003822,2]
[394223115,1763392246442,-155.98,0.0003822,2]
[394223116,1763392246451,-198.0,0.0003822,2]
[394223117,1763392246460,-150.0,0.0003822,2]
[394223118,1763392246469,-150.0,0.0003822,2]
[394223119,1763392246479,-150.0,0.0003822,2]
[394223120,1763392246488,-1500.0,0.00038268,5]
[394223122,1763392246498,-1132.94502583,0.00038274,30]
[394223124,1763392246510,-4644.704886,0.00038307,2]
[394223126,1763392246519,-151.0,0.00038356,120]
[394223128,1763392246528,-236.260499,0.00038356,120]
[394223129,1763392246538,-151.0,0.00038356,120]
[394223131,1763392246547,-151.0,0.00038356,120]
[394223133,1763392246556,-500.0,0.00038356,30]
[394223135,1763392246566,-150.64830389,0.00038356,5]
[394223137,1763392246575,-500.0,0.00038369,2]
[394223139,1763392246584,-168.0,0.00038383,120]
[394223141,1763392246593,-1132.94502583,0.00038438,30]
[394223142,1763392246602,-166.02542,0.0003844,2]
[394223145,1763392246612,-4644.704886,0.00038574,2]
[394223146,1763392246621,-700.23,0.00038575,2]
[394223147,1763392246631,-1132.94502583,0.00038575,30]
[394223148,1763392246640,-364.41860208,0.00038588,2]
[394223149,1763392246651,-168.0,0.00038607,7]
[394223150,1763392246661,-500.0,0.0003863,30]
[394223151,1763392246670,-500.0,0.00038643,2]
[394223152,1763392246680,-595.08766829,0.00038652,30]
[394223153,1763392246689,-488.84961451,0.00038652,120]
[394223154,1763392246699,-500.0,0.00038652,120]
[394223155,1763392246709,-500.0,0.00038652,120]
[394223156,1763392246718,-500.0,0.00038652,7]
[394223157,1763392246728,-488.0,0.00038652,7]
[394223158,1763392246738,-532.49857186,0.00038652,30]
[394223159,1763392246747,-538.90933031,0.00038652,120]
[394223160,1763392246761,-500.0,0.00038652,2]
[394223161,1763392246771,-500.0,0.00038652,2]
[394223162,1763392246781,-500.0,0.00038652,2]
[394223163,1763392246790,-337.68888476,0.00038652,2]
[394223164,1763392246800,-300.0,0.00038652,2]
[394223165,1763392246809,-500.0,0.00038652,2]
[394223166,1763392246819,-500.0,0.00038652,120]
[394223167,1763392246830,-500.0,0.00038652,2]
[394223168,1763392246840,-500.0,0.00038662,120]
[394223169,1763392246849,-500.0,0.00038662,120]
[394223170,1763392246860,-500.0,0.00038662,120]
[394223171,1763392246869,-166.02541,0.0003869,2]
[394223172,1763392246879,-5540.0,0.000387,117]
[394223173,1763392246889,-154.4,0.00038706,120]
[394223174,1763392246899,-151.19,0.00038716,120]
[394223175,1763392246909,-1000.0,0.00038721,5]
[394223176,1763392246921,-1132.94502583,0.0003874,30]
[394223177,1763392246930,-900.0,0.00038761,2]
[394223178,1763392246940,-900.0,0.00038761,2]
[394223179,1763392246950,-154.4,0.00038806,120]
[394223180,1763392246961,-369.33093842,0.00038816,5]
[394223181,1763392246971,-168.0,0.00038824,2]
[394223182,1763392246980,-4644.704886,0.0003884,2]
[394223183,1763392246989,-900.0,0.00038861,2]
[394223184,1763392247002,-900.0,0.00038861,2]
[394223185,1763392247011,-1132.94502583,0.00038877,30]
[394223186,1763392247021,-500.0,0.00038904,30]
[394223187,1763392247030,-154.4,0.00038906,120]
[394223189,1763392247040,-162.64827273,0.00038917,2]
[394223190,1763392247050,-500.0,0.00038926,2]
[394223191,1763392247060,-500.0,0.00038926,2]
[394223192,1763392247069,-500.0,0.00038926,2]
[394223193,1763392247079,-900.0,0.00038961,2]
[394223194,1763392247089,-900.0,0.00038961,2]
[394223195,1763392247099,-900.0,0.00038961,2]
[394223196,1763392247108,-900.0,0.00038961,2]
[394223197,1763392247118,-900.0,0.00038961,2]
[394223198,1763392247128,-900.0,0.00038961,2]
[394223199,1763392247138,-900.0,0.00038961,5]
[394223200,1763392247148,-900.0,0.00038961,2]
[394223201,1763392247157,-168.0,0.00038969,120]
[394223202,1763392247167,-1000.0,0.00038999,120]
[394223203,1763392247177,-50000.0,0.00039,39]
[394223204,1763392247187,-192.0,0.00039,30]
[394223205,1763392247197,-2239.0,0.00039,2]
[394223206,1763392247207,-154.4,0.00039006,120]
[394223207,1763392247217,-1000.0,0.00039026,120]
[394223208,1763392247227,-1132.94502583,0.00039041,30]
[394223209,1763392247237,-1000.0,0.00039054,120]
[394223210,1763392247247,-900.0,0.00039061,2]
[394223211,1763392247260,-900.0,0.00039061,2]
[394223212,1763392247270,-1000.0,0.00039081,120]
[394223213,1763392247280,-154.4,0.00039106,120]
[394223214,1763392247290,-4644.704886,0.00039107,2]
[394223215,1763392247299,-1000.0,0.00039109,120]
[394223216,1763392247309,-364.41860208,0.00039139,2]
[394223217,1763392247319,-900.0,0.00039161,2]
[394223218,1763392247329,-900.0,0.00039161,2]
[394223219,1763392247339,-172.9645281,0.00039168,15]
[394223220,1763392247350,-168.0,0.00039176,2]
[394223221,1763392247359,-500.0,0.00039178,30]
[394223222,1763392247369,-1132.94502583,0.00039178,30]
[394223223,1763392247379,-500.0,0.000392,2]
[394223224,1763392247388,-500.0,0.000392,2]
[394223225,1763392247398,-227.38871973,0.000392,2]
[394223226,1763392247408,-154.4,0.00039206,120]
[394223227,1763392247417,-163.65657458,0.00039276,30]
[394223228,1763392247427,-390.45491187,0.00039289,120]
[394223229,1763392247436,-154.45094947,0.00039306,120]
[394223230,1763392247446,-1132.94502583,0.00039342,30]
[394223231,1763392247458,-900.0,0.00039361,2]
[394223232,1763392247468,-900.0,0.00039361,2]
[394223233,1763392247479,-4644.704886,0.00039374,2]
[394223234,1763392247490,-168.0,0.00039436,2]
[394223235,1763392247504,-500.0,0.00039452,30]
[394223236,1763392247516,-900.0,0.00039461,2]
[394223237,1763392247527,-900.0,0.00039461,2]
[394223238,1763392247538,-488.0,0.00039474,8]
[394223239,1763392247548,-500.0,0.00039474,2]
[394223240,1763392247563,-500.0,0.00039474,2]
[394223241,1763392247574,-168.0,0.00039553,2]
[394223242,1763392247584,-900.0,0.0003956,2]
[394223243,1763392247593,-900.0,0.0003956,2]
[394223244,1763392247603,-209.79,0.00039654,2]
[394223245,1763392247613,-900.0,0.0003966,2]
[394223246,1763392247623,-900.0,0.0003966,2]
[394223247,1763392247634,-900.0,0.0003966,2]
[394223248,1763392247645,-900.0,0.0003966,2]
[394223249,1763392247655,-900.0,0.0003966,2]
[394223250,1763392247665,-900.0,0.0003966,2]
[394223251,1763392247675,-606.94,0.00039662,30]
[394223252,1763392247685,-364.41860208,0.00039691,2]
[394223253,1763392247695,-267.26637483,0.00039691,2]
[394223254,1763392247705,-9108.9470193,0.00039692,2]
[394223255,1763392247716,-150.0,0.00039714,30]
[394223256,1763392247725,-150.0,0.00039714,30]
[394223257,1763392247736,-150.0,0.00039714,30]
[394223258,1763392247747,-150.0,0.00039714,30]
[394223259,1763392247762,-150.0,0.00039714,30]
[394223260,1763392247772,-150.0,0.00039714,30]
[394223261,1763392247782,-150.0,0.00039714,30]
[394223262,1763392247792,-150.0,0.00039714,30]
[394223263,1763392247802,-150.0,0.00039714,30]
[394223264,1763392247812,-150.0,0.00039714,30]
[394223265,1763392247822,-269.12022389,0.00039714,30]
[394223266,1763392247831,-500.0,0.00039726,30]
[394223267,1763392247841,-500.0,0.00039748,2]
[394223268,1763392247850,-200.9225493,0.00039748,2]
[394223269,1763392247860,-168.0,0.00039757,7]
[394223270,1763392247869,-900.0,0.0003976,2]
[394223271,1763392247879,-900.0,0.0003976,2]
[394223272,1763392247889,-900.0,0.0003976,2]
[394223273,1763392247898,-900.0,0.0003976,2]
[394223274,1763392247908,-900.0,0.0003976,2]
[394223275,1763392247921,-900.0,0.0003976,2]
[394223276,1763392247930,-900.0,0.0003976,2]
[394223277,1763392247940,-168.0,0.00039773,7]
[394223278,1763392247949,-168.0,0.00039815,2]
[394223279,1763392247960,-168.0,0.00039834,2]
[394223280,1763392247970,-900.0,0.0003986,2]
[394223281,1763392247979,-900.0,0.0003986,2]
[394223282,1763392247989,-900.0,0.0003986,2]
[394223283,1763392247999,-151.0,0.000399,7]
[394223284,1763392248012,-168.0,0.00039951,120]
[394223285,1763392248021,-900.0,0.0003996,2]
[394223286,1763392248031,-900.0,0.0003996,3]
[394223287,1763392248040,-900.0,0.0003996,2]
[394223288,1763392248049,-900.0,0.0003996,2]
[394223289,1763392248058,-900.0,0.0003996,3]
[394223290,1763392248067,-905.64361222,0.0003996,7]
[394223291,1763392248077,-500.0,0.00039973,5]
[394223292,1763392248086,-500.0,0.00039973,5]
[394223293,1763392248096,-500.0,0.00039973,5]
[394223294,1763392248105,-501.8690547,0.00039973,5]
[394223295,1763392248114,-500.0,0.00039973,5]
[394223296,1763392248124,-379.96999157,0.00039999,31]
[394223297,1763392248134,-500.0,0.00039999,31]
[394223298,1763392248144,-279.20425508,0.00039999,31]
[394223299,1763392248154,-50000.0,0.0004,40]
[394223300,1763392248164,-2000.0,0.0004,120]
[394223301,1763392248174,-2117.29,0.0004,60]
[394223302,1763392248183,-290.0,0.0004,7]
[394223303,1763392248192,-10000.0,0.0004,120]
[394223304,1763392248202,-1341.0,0.0004,30]
[394223305,1763392248211,-192.0,0.0004,30]
[394223306,1763392248221,-300.0,0.0004,7]
[394223307,1763392248231,-578.0783497,0.0004,2]
[394223308,1763392248241,-178.0,0.0004,2]
[394223309,1763392248254,-76855.51599386,0.0004,120]
[394223325,1763392249046,-151.0,0.00038136,31]
[394223326,1763392249056,-151.0,0.00038136,31]
[394223327,1763392249066,-702.21327795,0.0004,120]
[394223328,1763392249078,-42913.16521084,0.0004,120]
[394223329,1763392249089,-553.61267999,0.0004,120]
[394223332,1763392805375,235.59,0.00013699,2]
[394223335,1763393111862,-705.11968684,0.0001999,2]
[394223336,1763393111887,-124.37633792,0.00020039,2]
[394223337,1763393113350,-175.62366208,0.00020039,2]
[394223338,1763393113375,-10.21511472,0.00020089,2]
[394223339,1763393115173,-180.68372135,0.00020089,2]
[394223340,1763393186345,250.0,0.00017,2]
[394223342,1763393201832,-250.0,0.00019,2]
[394223348,1763393317850,167097.23745211,0.00015,3]
[394223350,1763393319146,-50.0,0.00019,2]
[394223351,1763393319169,-108.31981146,0.000195,7]
[394223434,1763393432392,-300.0,0.00019499,2]
[394223435,1763393432402,-1200.0,0.00019499,2]
[394223436,1763393432411,-2736.15900844,0.000195,7]
[394223437,1763393432423,-978.71373151,0.000195,7]
[394223438,1763393432435,-3767.57721459,0.000195,7]
[394223439,1763393432447,-394.17718249,0.000195,7]
[394223440,1763393432482,-461.17361602,0.000195,7]
[394223441,1763393432563,-2555.19420213,0.000195,7]
[394223442,1763393432576,-985.92817948,0.000195,7]
[394223443,1763393432587,-1295.31452208,0.000195,7]
[394223444,1763393432653,-527.69098567,0.000195,7]
[394223445,1763393432667,-1030.18324532,0.000195,7]
[394223446,1763393432679,-52735.71414145,0.000195,7]
[394223447,1763393432688,-235.59,0.00020187,2]
[394223448,1763393432698,-250.0,0.000209,2]
[394223449,1763393432708,-420.0,0.00021243,2]
[394223450,1763393432718,-295.37305769,0.00021889,2]
[394223451,1763393432727,-287.0,0.00023143,2]
[394223452,1763393432737,-168.69002233,0.00025,5]
[394223453,1763393432747,-235.59,0.00026676,2]
[394223454,1763393432757,-335.822968,0.00031,2]
[394223455,1763393432768,-150.0,0.000316,14]
[394223457,1763393432779,-29392.0,0.00032,120]
[394223459,1763393432788,-235.59,0.00033165,2]
[394223461,1763393432798,-1038.35,0.00033876,2]
[394223463,1763393432808,-9999.99,0.0003443,2]
[394223465,1763393432818,-2402.45,0.0003443,2]
[394223467,1763393432828,-6493.72,0.0003443,2]
[394223469,1763393432838,-150.99,0.0003443,2]
[394223471,1763393432847,-999.99,0.0003443,2]
[394223473,1763393432857,-2981.51,0.0003443,10]
[394223475,1763393432866,-461.71,0.0003443,2]
[394223477,1763393432879,-324.07,0.0003443,2]
[394223479,1763393432889,-1188.69,0.0003443,2]
[394223481,1763393432898,-14476.9,0.0003443,2]
[394223483,1763393432908,-340.67534612,0.00035,2]
[394223485,1763393432918,-166.66,0.00035063,30]
[394223487,1763393432928,-2453.83,0.00035197,2]
[394223489,1763393432938,-1000.0,0.00035202,2]
[394223491,1763393432947,-273.63,0.000354,30]
[394223493,1763393432957,-1000.0,0.00035685,2]
[394223495,1763393432966,-166.66,0.00035801,30]
[394223497,1763393432975,-151.82,0.00035995,120]
[394223499,1763393432984,-2000.0,0.00036164,120]
[394223501,1763393432995,-166.66,0.00036539,30]
[394223503,1763393433005,-2000.0,0.00036712,120]
[394223505,1763393433015,-150.0,0.00036814,7]
[394223507,1763393433024,-150.0,0.00036814,7]
[394223509,1763393433034,-150.0,0.00036814,7]
[394223511,1763393433043,-150.0,0.00036814,7]
[394223512,1763393433064,-150.0,0.00036814,7]
[394223513,1763393433074,-150.0,0.00036814,7]
[394223514,1763393433084,-150.0,0.00036814,7]
[394223515,1763393433095,-150.0,0.00036814,7]
[394223516,1763393433105,-150.0,0.00036814,7]
[394223517,1763393433114,-368.0021,0.00036888,7]
[394223518,1763393433129,-2000.0,0.0003726,120]
[394223519,1763393433138,-150.0,0.00037268,7]
[394223520,1763393433148,-166.66,0.00037277,30]
[394223521,1763393433158,-150.0,0.00037495,7]
[394223522,1763393433168,-150.0,0.00037723,7]
[394223523,1763393433178,-406.217,0.00037723,30]
[394223524,1763393433187,-235.714,0.00037783,49]
[394223525,1763393433198,-2000.0,0.00037808,120]
[394223526,1763393433208,-150.0,0.00037836,7]
[394223527,1763393433218,-4461.36011546,0.00037883,2]
[394223528,1763393433228,-340.40849513,0.00037926,2]
[394223529,1763393433239,-205.57167793,0.00037935,2]
[394223530,1763393433251,-5000.0,0.00037936,30]
[394223531,1763393433260,-237.36156548,0.00038013,14]
[394223532,1763393433270,-151.0,0.00038013,2]
[394223533,1763393433280,-151.0,0.00038013,2]
[394223534,1763393433289,-151.0,0.00038013,2]
[394223535,1763393433300,-151.0,0.00038013,2]
[394223536,1763393433312,-151.0,0.00038013,2]
[394223537,1763393433325,-201.94195595,0.00038013,2]
[394223538,1763393433335,-166.66,0.00038015,30]
[394223539,1763393433346,-97948.2858826,0.00038016,4]
[394223540,1763393433356,-500.0,0.00038025,15]
[394223541,1763393433367,-294.73959081,0.00038025,15]
[394223542,1763393433380,-291.53016851,0.00038025,15]
[394223543,1763393433390,-500.0,0.00038025,15]
[394223544,1763393433400,-500.0,0.00038025,15]
[394223545,1763393433410,-500.0,0.00038025,15]
[394223546,1763393433420,-500.0,0.00038025,15]
[394223547,1763393433430,-209.43002966,0.00038025,7]
[394223548,1763393433440,-500.0,0.00038025,15]
[394223549,1763393433449,-500.0,0.00038025,15]
[394223550,1763393433460,-500.0,0.00038025,15]
[394223551,1763393433470,-500.0,0.00038025,15]
[394223552,1763393433479,-500.0,0.00038025,15]
[394223553,1763393433490,-500.0,0.00038025,15]
[394223554,1763393433500,-500.0,0.00038025,15]
[394223555,1763393433510,-500.0,0.00038025,15]
[394223556,1763393433520,-500.0,0.00038025,15]
[394223557,1763393433530,-500.0,0.00038025,15]
[394223558,1763393433540,-500.0,0.00038025,15]
[394223559,1763393433550,-500.0,0.00038025,15]
[394223560,1763393433561,-500.0,0.00038025,15]
[394223561,1763393433570,-500.0,0.00038025,15]
[394223562,1763393433580,-500.0,0.00038025,15]
[394223563,1763393433590,-500.0,0.00038025,15]
[394223564,1763393433601,-500.0,0.00038025,15]
[394223565,1763393433611,-500.0,0.00038025,15]
[394223566,1763393433625,-500.0,0.00038025,15]
[394223567,1763393433635,-500.0,0.00038025,15]
[394223568,1763393433646,-500.0,0.00038025,15]
[394223569,1763393433662,-500.0,0.00038025,15]
[394223570,1763393433674,-500.0,0.00038025,15]
[394223571,1763393433684,-500.0,0.00038025,15]
[394223572,1763393433695,-500.0,0.00038025,15]
[394223573,1763393433706,-500.0,0.00038025,15]
[394223574,1763393433716,-500.0,0.00038025,15]
[394223575,1763393433726,-197.4909107,0.00038025,15]
[394223576,1763393433736,-500.0,0.00038025,15]
[394223577,1763393433747,-500.0,0.00038025,15]
[394223578,1763393433757,-500.0,0.00038025,15]
[394223579,1763393433767,-500.0,0.00038025,15]
[394223580,1763393433777,-153.09146872,0.00038025,15]
[394223581,1763393433795,-346.90853128,0.00038025,15]
[394223582,1763393433805,-500.0,0.00038025,15]
[394223583,1763393433814,-500.0,0.00038025,15]
[394223584,1763393433829,-500.0,0.00038025,15]
[394223585,1763393433840,-400.0,0.00038025,15]
[394223586,1763393433850,-500.0,0.00038025,15]
[394223587,1763393433861,-500.0,0.00038025,15]
[394223588,1763393433871,-325.37311074,0.00038025,15]
[394223589,1763393433884,-174.62688926,0.00038025,15]
[394223590,1763393433893,-469.3836112,0.00038025,15]
[394223591,1763393433909,-30.6163888,0.00038025,15]
[394223592,1763393433919,-358.20276358,0.00038025,15]
[394223593,1763393438339,-141.79723642,0.00038025,15]
[394223594,1763393438350,-500.0,0.00038025,15]
[394223595,1763393438359,-500.0,0.00038025,15]
[394223596,1763393438371,-500.0,0.00038025,15]
[394223597,1763393438384,-500.0,0.00038025,15]
[394223598,1763393438394,-500.0,0.00038025,15]
[394223599,1763393438404,-155.93787371,0.00038025,15]
[394223600,1763393438417,-344.06212629,0.00038025,15]
[394223601,1763393438426,-500.0,0.00038025,15]
[394223602,1763393438436,-500.0,0.00038025,15]
[394223603,1763393438446,-500.0,0.00038025,15]
[394223604,1763393438455,-500.0,0.00038025,15]
[394223605,1763393438464,-400.19354178,0.00038025,15]
[394223606,1763393438590,-99.80645822,0.00038025,15]
[394223607,1763393438600,-500.0,0.00038025,15]
[394223608,1763393438611,-500.0,0.00038025,15]
[394223609,1763393438621,-500.0,0.00038025,15]
[394223610,1763393438634,-500.0,0.00038025,15]
[394223611,1763393438643,-500.0,0.00038025,15]
[394223612,1763393438653,-500.0,0.00038025,15]
[394223613,1763393438663,-500.0,0.00038025,15]
[394223614,1763393438673,-300.0,0.00038025,15]
[394223615,1763393438683,-500.0,0.00038025,120]
[394223616,1763393438693,-500.0,0.00038025,2]
[394223617,1763393438703,-610.44819336,0.00038025,120]
[394223618,1763393438711,-5683.60580047,0.00038026,2]
[394223619,1763393438720,-8788.69665614,0.00038026,4]
[394223634,1763393439530,-5552.51701183,0.00038026,4]
[394223635,1763393439543,-28644.63191683,0.00038026,4]
[394223636,1763393439559,-3530.8,0.00038026,4]
[394223637,1763393439594,-786.99999978,0.00038026,4]
[394223643,1763393440412,-1635.31,0.00036867,2]
[394223644,1763393440425,-9794.69,0.00038026,4]
[394223645,1763393440441,-1058.7192806,0.00038026,4]
[394223646,1763393440456,-949.309992,0.00038026,4]
[394223647,1763393440540,-354.67999999,0.00038026,4]
[394223648,1763393440556,-377.58142882,0.00038026,4]
[394223649,1763393440571,-4480.8035198,0.00038026,4]
[394223650,1763393440650,-3416.23895602,0.00038026,4]
[394223651,1763393440668,-23663.27709268,0.00038026,4]
[394223652,1763393440684,-9506.78639084,0.00038026,4]
[394223653,1763393440699,-1932.67149363,0.00038026,4]
[394223654,1763393440762,-1505.0,0.00038026,4]
[394223655,1763393440776,-665.65404442,0.00038026,4]
[394223656,1763393440790,-3547.5,0.00038026,4]
[394223657,1763393440807,-3938.57098204,0.00038026,4]
[394223658,1763393440819,-1427.5027801,0.00038026,4]
[394223659,1763393440871,-377.33997814,0.00038026,4]
[394223661,1763393440921,-298.51436949,0.00038026,4]
[394223685,1763393443943,-1912.53298058,0.00038026,4]
[394223686,1763393443955,-15186.23229597,0.00038026,4]
[394223687,1763393443975,-763.91352797,0.00038026,4]
[394223688,1763393444033,-647.13300431,0.00038026,4]
[394223689,1763393444080,-3054.60463799,0.00038026,4]
[394223700,1763393446711,-1587.635991,0.00038026,4]
[394223701,1763393446723,-373.96952708,0.00038026,4]
[394223702,1763393446757,-736.64384478,0.00038026,4]
[394223703,1763393446787,-38668.9953192,0.00038026,4]
[394223775,1763394631698,-163.86,0.00029028,2]
[394223776,1763394631708,-107.68991355,0.00029999,2]
[394223777,1763394631974,-129.31008645,0.00029999,2]
[394223778,1763394631983,-300.0,0.00029999,2]
[394223779,1763394631994,-177.17704888,0.00029999,2]
[394223784,1763394632122,-9.22761972,0.00029999,2]
[394223786,1763394632137,-1013.5953314,0.00029999,2]
[394223788,1763394632147,-300.0,0.00029999,119]
[394223790,1763394632156,-195.0,0.00029999,120]
[394223791,1763394632165,-1828.07215691,0.0003,2]
[394223792,1763394632177,-4953.41143284,0.0003,2]
[394223794,1763394632188,-16445.60794293,0.0003,2]
[394223796,1763394632197,-300.0,0.00030431,119]
[394223797,1763394632206,-479.1746172,0.00031793,2]
[394223798,1763394632216,-250.0,0.00031931,2]
[394223799,1763394632225,-195.0,0.00032999,120]
[394223800,1763394632235,-200.0,0.00032999,120]
[394223802,1763394632244,-393.47916949,0.00032999,2]
[394223804,1763394632254,-300.0,0.00032999,119]
[394223806,1763394632264,-150.0,0.000333,30]
[394223807,1763394632274,-150.99,0.000333,30]
[394223808,1763394632284,-153.38,0.00035993,120]
[394223809,1763394632294,-189.93,0.00035993,2]
[394223810,1763394632304,-150.0,0.00036,30]
[394223811,1763394632314,-150.0,0.00036257,2]
[394223812,1763394632323,-1731.33,0.00036287,2]
[394223813,1763394632333,-150.0,0.00036365,2]
[394223814,1763394632343,-150.0,0.0003642,2]
[394223815,1763394632352,-300.0,0.00036813,2]
[394223816,1763394632362,-150.0,0.00036814,7]
[394223817,1763394632372,-150.0,0.00036814,7]
[394223818,1763394632381,-150.0,0.00036814,7]
[394223819,1763394632392,-150.0,0.00036814,7]
[394223820,1763394632402,-150.0,0.00036814,7]
[394223821,1763394632414,-150.0,0.00036814,7]
[394223822,1763394632425,-150.0,0.00036814,7]
[394223823,1763394632435,-150.0,0.00036814,7]
[394223824,1763394632445,-150.0,0.00036814,7]
[394223825,1763394632456,-150.0,0.00036814,7]
[394223826,1763394632466,-150.0,0.00036814,7]
[394223827,1763394632475,-150.0,0.00036814,7]
[394223828,1763394632485,-150.0,0.00036814,7]
[394223829,1763394632495,-151.0,0.00036867,2]
[394223830,1763394632505,-151.0,0.00036867,2]
[394223831,1763394632514,-188.571,0.00036867,46]
[394223832,1763394632525,-428.0227,0.00036888,7]
[394223833,1763394632535,-618.82,0.00036921,2]
[394223834,1763394632544,-924.36,0.00036927,2]
[394223835,1763394632554,-250.0,0.00036927,2]
[394223836,1763394632564,-150.0,0.00037128,7]
[394223837,1763394632573,-150.0,0.00037128,7]
[394223838,1763394632584,-181.61613088,0.000372,120]
[394223839,1763394632595,-150.0,0.00037268,7]
[394223840,1763394632605,-150.0,0.00037398,7]
[394223841,1763394632616,-1110.18,0.00037428,5]
[394223842,1763394632626,-150.0,0.00037443,7]
[394223843,1763394632637,-150.0,0.00037443,7]
[394223844,1763394632647,-217.81219736,0.00037452,2]
[394223845,1763394632657,-150.0,0.00037495,7]
[394223846,1763394632667,-200.0,0.000376,13]
[394223847,1763394632678,-663.0,0.000376,120]
[394223848,1763394632689,-700.39,0.00037616,2]
[394223849,1763394632698,-663.0,0.00037618,7]
[394223850,1763394632707,-150.0,0.00037632,7]
[394223851,1763394632720,-150.0,0.00037632,7]
[394223852,1763394632729,-867.88,0.00037682,5]
[394223853,1763394632739,-217.81219737,0.00037687,2]
[394223854,1763394632749,-500.0,0.000377,13]
[394223855,1763394632759,-150.0,0.00037723,7]
[394223856,1763394632769,-150.0,0.00037758,7]
[394223857,1763394632779,-150.0,0.00037758,7]
[394223858,1763394632788,-800.0,0.000378,13]
[394223859,1763394632799,-1243.5925,0.00037815,2]
[394223860,1763394632809,-30766.44103304,0.00037815,2]
[394223861,1763394632822,-256.44516696,0.00037815,2]
[394223862,1763394632834,-202.4833,0.00037815,2]
[394223863,1763394632845,-864.69295069,0.00037815,2]
[394223864,1763394632857,-1009.87494404,0.00037815,2]
[394223865,1763394632902,-290.71464609,0.00037815,2]
[394223866,1763394632912,-206.83763482,0.00037815,2]
[394223867,1763394632921,-157.26771909,0.00037822,15]
[394223868,1763394632933,-13.98955586,0.00037822,15]
[394223869,1763394632943,-1000.0,0.00037825,2]
[394223870,1763394632952,-5000.0,0.00037825,30]
[394223871,1763394632962,-150.0,0.00037836,7]
[394223872,1763394632971,-1100.0,0.000379,13]
[394223873,1763394632981,-500.0,0.00037902,2]
[394223874,1763394632990,-500.0,0.00037902,2]
[394223875,1763394633000,-500.0,0.00037902,2]
[394223876,1763394633010,-500.0,0.00037902,2]
[394223877,1763394633020,-500.0,0.00037902,2]
[394223878,1763394633030,-500.0,0.00037902,2]
[394223879,1763394633041,-248.0,0.00037902,2]
[394223880,1763394633050,-250.0,0.00037902,2]
[394223881,1763394633059,-150.0,0.00037902,2]
[394223882,1763394633068,-150.0,0.00037902,2]
[394223883,1763394633078,-200.0,0.00037902,2]
[394223884,1763394633093,-151.0,0.00037902,2]
[394223885,1763394633103,-151.0,0.00037902,2]
[394223886,1763394633113,-151.0,0.00037902,2]
[394223887,1763394633122,-151.0,0.00037902,2]
[394223888,1763394633133,-151.0,0.00037902,2]
[394223889,1763394633142,-151.0,0.00037902,2]
[394223890,1763394633152,-151.0,0.00037902,2]
[394223891,1763394633161,-151.0,0.00037902,2]
[394223892,1763394633171,-151.0,0.00037902,2]
[394223893,1763394633181,-151.0,0.00037902,2]
[394223894,1763394633191,-151.0,0.00037902,2]
[394223895,1763394633200,-151.0,0.00037902,2]
[394223896,1763394633209,-151.0,0.00037902,2]
[394223897,1763394633219,-151.0,0.00037902,2]